bitfinex-derivatives/quotes_BTCF0:USTF0_20241214
["timestamp","ask_amount","ask_price","bid_price","bid_amount"]
[1734166667733,0.55893127,101880.0,101870.0,0.94031931]
[1734166668179,0.55893127,101880.0,101870.0,0.94037424]
[1734166668337,0.19813127,101880.0,101870.0,0.94037424]
[1734166668549,0.91973127,101880.0,101870.0,0.94037424]
[1734166668742,0.83146125,101880.0,101870.0,0.94037424]
[1734166669536,0.19813127,101880.0,101870.0,0.94037424]
[1734166669842,0.91973127,101880.0,101870.0,0.94037424]
[1734166673130,0.91973127,101880.0,101870.0,0.94027765]
[1734166675439,1.03741373,101880.0,101870.0,0.94027765]
[1734166676345,1.09820098,101880.0,101870.0,0.94027765]
[1734166678445,1.03741373,101880.0,101870.0,0.94027765]
[1734166678844,1.09820098,101880.0,101870.0,0.94027765]
[1734166680955,1.09820098,101880.0,101870.0,0.94095573]
[1734166682041,0.97662648,101880.0,101870.0,0.94095573]
[1734166682235,1.09820098,101880.0,101870.0,0.94095573]
[1734166685050,1.09820098,101880.0,101870.0,0.94074554]
[1734166690657,1.03741373,101880.0,101870.0,0.94074554]
[1734166693958,1.03741373,101880.0,101870.0,0.94066047]
[1734166695864,1.09820098,101880.0,101870.0,0.94066047]
[1734166699662,1.09820098,101880.0,101870.0,0.58810421]
[1734166700060,1.09820098,101880.0,101870.0,0.94076511]
[1734166702662,1.09820098,101880.0,101870.0,0.89168611]
[1734166702863,1.09820098,101880.0,101870.0,0.89186333]
[1734166703767,1.09820098,101880.0,101870.0,0.3848609]
[1734166703967,1.09820098,101880.0,101870.0,0.8919221]
[1734166705672,0.97662648,101880.0,101870.0,0.8919221]
[1734166705873,1.09820098,101880.0,101870.0,0.8919221]
[1734166706768,0.97662648,101880.0,101870.0,0.8919221]
[1734166706979,1.09820098,101880.0,101870.0,0.8919221]
[1734166708969,0.37660098,101880.0,101870.0,0.8919221]
[1734166709169,1.09820098,101880.0,101870.0,0.8919221]
[1734166713478,1.03741373,101880.0,101870.0,0.9410011]
[1734166713671,1.09820098,101880.0,101870.0,0.9410011]
[1734166713869,1.03741373,101880.0,101870.0,0.9410011]
[1734166716200,0.97662648,101880.0,101870.0,0.9410011]
[1734166716471,1.09820098,101880.0,101870.0,0.9410011]
[1734166716669,1.03741373,101880.0,101870.0,0.9410011]
[1734166718581,1.09820098,101880.0,101870.0,0.9410011]
[1734166719380,1.03741373,101880.0,101870.0,0.9410011]
[1734166719584,1.03741373,101880.0,101870.0,0.93958175]
[1734166720974,1.03741373,101880.0,101870.0,0.93961399]
[1734166724687,1.09820098,101880.0,101870.0,0.93961399]
[1734166725588,1.09820098,101880.0,101870.0,0.93964596]
[1734166726382,1.03741373,101880.0,101870.0,0.93964596]
[1734166726579,1.09820098,101880.0,101870.0,0.93964596]
[1734166727292,1.09820098,101880.0,101870.0,0.89056696]
[1734166733194,0.37660098,101880.0,101870.0,0.89056696]
[1734166733494,1.09820098,101880.0,101870.0,0.89056696]
[1734166735895,1.00993096,101880.0,101870.0,0.89056696]
[1734166736093,1.00993096,101880.0,101870.0,0.61557025]
[1734166736494,1.00993096,101880.0,101870.0,0.90930226]
[1734166737092,1.07071821,101880.0,101870.0,0.87710226]
[1734166737292,1.15718766,101880.0,101870.0,0.52444136]
[1734166742491,1.00993096,101880.0,101870.0,0.52444136]
[1734166744595,1.00993096,101880.0,101870.0,0.75926203]
[1734166744800,1.00993096,101880.0,101870.0,0.52444136]
[1734166745499,1.00993096,101880.0,101870.0,0.75925287]
[1734166746798,0.28833096,101880.0,101870.0,0.75925287]
[1734166746993,1.00993096,101880.0,101870.0,0.75925287]
[1734166747193,0.28833096,101880.0,101870.0,0.75925287]
[1734166747394,1.00993096,101880.0,101870.0,0.75925287]
[1734166748401,1.00993096,101880.0,101870.0,0.79075287]
[1734166748803,0.88835646,101880.0,101870.0,0.79075287]
[1734166749103,1.00993096,101880.0,101870.0,0.79075287]
[1734166749296,0.28833096,101880.0,101870.0,0.79075287]
[1734166749706,1.00993096,101880.0,101870.0,0.55594136]
[1734166752106,1.00993096,101880.0,101870.0,0.55763522]
[1734166753204,1.09819819,101880.0,101870.0,0.55763522]
[1734166756711,1.09819819,101880.0,101870.0,0.5577016]
[1734166757310,1.00993096,101880.0,101870.0,0.5577016]
[1734166761324,1.00993096,101880.0,101870.0,0.55775963]
[1734166762425,1.15718766,101880.0,101870.0,0.55775963]
[1734166763619,1.15718766,101880.0,101870.0,0.91042053]
[1734166764024,1.15718766,101880.0,101870.0,0.55775963]
[1734166764524,1.15718766,101880.0,101870.0,0.91042053]
[1734166766124,1.15718766,101880.0,101870.0,0.91053824]
[1734166768629,1.15718766,101880.0,101870.0,0.55787734]
[1734166769235,1.21797491,101880.0,101870.0,0.05011313]
[1734166769435,1.21797491,101880.0,101860.0,0.19909871]
[1734166769436,0.049079,101870.0,101860.0,0.19909871]
[1734166769733,0.81849118,101870.0,101860.0,0.19909871]
[1734166769930,0.77075399,101870.0,101860.0,0.19909871]
[1734166770332,0.77075399,101870.0,101860.0,0.12415061]
[1734166770333,0.83154124,101870.0,101860.0,0.12415061]
[1734166770521,0.83154124,101870.0,101850.0,0.0005]
[1734166770522,0.049084,101860.0,101850.0,0.0005]
[1734166770721,0.73941459,101860.0,101850.0,0.0005]
[1734166771533,0.77251459,101860.0,101850.0,0.0005]
[1734166774334,0.89007883,101860.0,101850.0,0.0005]
[1734166775742,0.9010874,101860.0,101850.0,0.0005]
[1734166776437,0.9010874,101860.0,101840.0,0.03467268]
[1734166776633,0.61959547,101850.0,101840.0,0.00147268]
[1734166776940,0.73715971,101850.0,101840.0,0.00147268]
[1734166778339,0.61959547,101850.0,101840.0,0.00147268]
[1734166778642,0.049094,101840.0,101830.0,0.0651]
[1734166778831,0.5314685,101840.0,101830.0,0.0651]
[1734166784345,0.54256328,101840.0,101830.0,0.0651]
[1734166789541,0.90336328,101840.0,101830.0,0.0656]
[1734166789846,0.18176328,101840.0,101830.0,0.0656]
[1734166790050,0.90336328,101840.0,101830.0,0.0656]
[1734166790241,0.18176328,101840.0,101830.0,0.0656]
[1734166790441,0.90336328,101840.0,101830.0,0.0656]
[1734166791156,0.78178878,101840.0,101830.0,0.0656]
[1734166791512,0.90336328,101840.0,101830.0,0.0656]
[1734166791646,0.92341258,101840.0,101830.0,0.0656]
[1734166795345,1.01154455,101840.0,101830.0,0.0656]
[1734166798353,1.12910879,101840.0,101830.0,0.0656]
[1734166799350,1.04097682,101840.0,101830.0,0.35919351]
[1734166799552,1.04097682,101840.0,101830.0,0.35869351]
[1734166801070,1.04097682,101840.0,101830.0,0.71008263]
[1734166801251,1.04097682,101840.0,101830.0,0.41648912]
[1734166801848,1.02092752,101840.0,101830.0,0.41648912]
[1734166802360,1.10928259,101840.0,101830.0,0.41648912]
[1734166803160,1.10928259,101840.0,101830.0,0.66645869]
[1734166804843,1.10928259,101840.0,101830.0,0.66645765]
[1734166805354,1.12904251,101840.0,101830.0,0.66645765]
[1734166807452,1.12904251,101840.0,101830.0,0.63325765]
[1734166808953,1.04068744,101840.0,101830.0,0.38328912]
[1734166811554,1.1290689,101840.0,101830.0,0.63320854]
[1734166813157,1.04068744,101840.0,101830.0,0.35138912]
[1734166813360,1.16047288,101840.0,101830.0,0.60185415]
[1734166817462,1.22125707,101840.0,101830.0,0.60165353]
[1734166817660,1.10169204,101840.0,101830.0,0.29397478]
[1734166818061,1.27839253,101840.0,101830.0,0.29397478]
[1734166818568,1.10169204,101840.0,101830.0,0.29397478]
[1734166818756,1.16247929,101840.0,101830.0,0.29397478]
[1734166819011,1.10169204,101840.0,101830.0,0.29397478]
[1734166819964,1.16247929,101840.0,101830.0,0.29397478]
[1734166820562,1.10169204,101840.0,101830.0,0.29397478]
[1734166820962,0.44087929,101840.0,101830.0,0.29397478]
[1734166821160,0.049099,101830.0,101820.0,0.6458639]
[1734166821362,0.73756799,101830.0,101820.0,0.6458639]
[1734166821560,0.73756799,101830.0,101820.0,0.6453639]
[1734166821869,1.09836799,101830.0,101820.0,0.29397478]
[1734166822067,1.13106799,101830.0,101820.0,0.29397478]
[1734166822658,1.13106799,101830.0,101820.0,0.86251771]
[1734166823274,1.04274178,101830.0,101820.0,0.51112859]
[1734166823460,1.16424342,101830.0,101820.0,0.86251771]
[1734166823766,1.07594178,101830.0,101820.0,0.51062859]
[1734166823970,1.22311062,101830.0,101820.0,0.17627799]
[1734166824670,1.22311062,101830.0,101820.0,0.17677799]
[1734166825556,1.22311062,101830.0,101820.0,0.17627799]
[1734166826381,0.049103,101820.0,101810.0,0.1279156]
[1734166826672,0.76788282,101820.0,101810.0,0.1279156]
[1734166827475,0.76788282,101820.0,101810.0,7.615e-05]
[1734166827774,1.12868282,101820.0,101810.0,7.615e-05]
[1734166828469,1.18947007,101820.0,101810.0,7.615e-05]
[1734166830171,1.20043692,101820.0,101810.0,7.615e-05]
[1734166831565,0.049108,101810.0,101790.0,0.6268203]
[1734166831766,0.8922875,101800.0,101790.0,0.6268203]
[1734166831965,0.8922875,101800.0,101790.0,0.33284552]
[1734166832576,0.8922875,101800.0,101790.0,0.30054552]
[1734166832852,0.8922875,101800.0,101790.0,0.26764552]
[1734166833876,0.8922875,101800.0,101790.0,0.03297342]
[1734166834678,0.8922875,101800.0,101790.0,0.03347342]
[1734166835284,0.90325131,101800.0,101790.0,0.03347342]
[1734166835981,0.78167681,101800.0,101790.0,0.03347342]
[1734166836297,0.90325131,101800.0,101790.0,0.03347342]
[1734166843676,0.92332287,101800.0,101790.0,0.03347342]
[1734166844579,0.92332287,101800.0,101790.0,0.26814552]
[1734166844784,0.92332287,101800.0,101790.0,0.03347342]
[1734166845582,0.92332287,101800.0,101790.0,0.26814552]
[1734166847488,1.01156801,101800.0,101790.0,0.26814552]
[1734166847794,0.92332287,101800.0,101790.0,0.26814552]
[1734166847984,1.01156801,101800.0,101790.0,0.26814552]
[1734166848184,0.92332287,101800.0,101790.0,0.26814552]
[1734166851491,1.01156801,101800.0,101790.0,0.26814552]
[1734166853490,1.12922819,101800.0,101790.0,0.3274482]
[1734166854581,1.04098305,101800.0,101790.0,0.3274482]
[1734166856694,1.04098305,101800.0,101790.0,0.3269482]
[1734166857791,0.31938305,101800.0,101790.0,0.3269482]
[1734166858098,1.04098305,101800.0,101790.0,0.3269482]
[1734166859096,1.12934108,101800.0,101790.0,0.67833732]
[1734166859489,1.04098305,101800.0,101790.0,0.67833732]
[1734166860595,1.18815189,101800.0,101790.0,0.67833732]
[1734166860991,1.18815189,101800.0,101790.0,0.3269482]
[1734166861393,1.07049171,101800.0,101790.0,0.3269482]
[1734166863601,0.34889171,101800.0,101790.0,0.3269482]
[1734166863811,1.07049171,101800.0,101790.0,0.3269482]
[1734166865507,0.34889171,101800.0,101790.0,0.3269482]
[1734166865705,1.07049171,101800.0,101790.0,0.3269482]
[1734166866310,0.34889171,101800.0,101790.0,0.3269482]
[1734166866514,1.07049171,101800.0,101790.0,0.3269482]
[1734166870116,1.04119086,101800.0,101790.0,0.3269482]
[1734166871003,0.68039086,101800.0,101790.0,0.32547478]
[1734166874107,0.56252287,101800.0,101790.0,0.32547478]
[1734166874518,0.70969171,101800.0,101790.0,0.32547478]
[1734166878419,0.77047896,101800.0,101790.0,0.29397478]
[1734166878716,0.97827945,101800.0,101790.0,0.52955919]
[1734166879714,0.80157896,101800.0,101790.0,0.52955919]
[1734166880618,0.97827945,101800.0,101790.0,0.23558441]
[1734166880820,0.80157896,101800.0,101790.0,0.52955919]
[1734166881316,0.80157896,101800.0,101790.0,0.23558441]
[1734166882816,0.97827945,101800.0,101790.0,0.23558441]
[1734166886520,1.33907945,101800.0,101790.0,0.23558441]
[1734166888417,1.70223945,101800.0,101790.0,0.23558441]
[1734166889729,1.70235537,101800.0,101790.0,0.23558441]
[1734166890225,1.55507061,101800.0,101790.0,0.23558441]
[1734166890430,1.70234438,101800.0,101790.0,0.23558441]
[1734166891418,1.52564389,101800.0,101790.0,0.23558441]
[1734166894324,1.34328214,101800.0,101790.0,0.23558441]
[1734166894526,1.46485664,101800.0,101790.0,0.23558441]
[1734166895417,1.52564389,101800.0,101790.0,0.23558441]
[1734166899634,1.49454389,101800.0,101790.0,0.23558441]
[1734166899833,1.31218214,101800.0,101790.0,0.26568441]
[1734166900034,1.31218214,101800.0,101790.0,0.32928441]
[1734166900239,1.43375664,101800.0,101790.0,0.32928441]
[1734166902340,1.43375664,101800.0,101790.0,0.62325919]
[1734166904744,1.43375664,101800.0,101790.0,0.38767478]
[1734166904745,1.5516021,101800.0,101790.0,0.38767478]
[1734166907341,1.40432833,101800.0,101790.0,0.38767478]
[1734166914443,1.49266386,101800.0,101790.0,0.38767478]
[1734166915150,1.40432833,101800.0,101790.0,0.38767478]
[1734166917241,1.49265841,101800.0,101790.0,0.38767478]
[1734166917842,1.40432833,101800.0,101790.0,0.38767478]
[1734166918252,1.49265744,101800.0,101790.0,0.38767478]
[1734166918857,1.40432833,101800.0,101790.0,0.38767478]
[1734166919665,1.4926569,101800.0,101790.0,0.38767478]
[1734166921659,1.40432833,101800.0,101790.0,0.38767478]
[1734166922658,0.68272833,101800.0,101790.0,0.38767478]
[1734166923070,1.40432833,101800.0,101790.0,0.38767478]
[1734166924473,0.68272833,101800.0,101790.0,0.38767478]
[1734166924968,1.40432833,101800.0,101790.0,0.38767478]
[1734166925562,0.68272833,101800.0,101790.0,0.38767478]
[1734166925769,1.40432833,101800.0,101790.0,0.38767478]
[1734166926060,1.40432833,101800.0,101790.0,0.35527478]
[1734166926061,0.68272833,101800.0,101790.0,0.35527478]
[1734166926264,1.5516021,101800.0,101790.0,0.35527478]
[1734166928777,1.11579537,101800.0,101790.0,0.46518003]
[1734166928974,0.82094464,101800.0,101790.0,1.35439437]
[1734166929291,0.56702424,101810.0,101800.0,0.049113]
[1734166929578,0.3608,101810.0,101800.0,0.41827948]
[1734166929878,0.3613,101810.0,101800.0,1.41691665]
[1734166930080,0.64983044,101810.0,101800.0,0.29395216]
[1734166930372,0.64983044,101810.0,101800.0,0.23518797]
[1734166930373,0.89793506,101810.0,101800.0,0.23518797]
[1734166930770,0.89743506,101810.0,101800.0,0.23518797]
[1734166931868,0.89793506,101810.0,101800.0,0.23518797]
[1734166932778,0.89743506,101810.0,101800.0,0.23518797]
[1734166933869,0.89793506,101810.0,101800.0,0.23518797]
[1734166934879,0.89743506,101810.0,101800.0,0.23518797]
[1734166935874,0.89793506,101810.0,101800.0,0.23518797]
[1734166936880,0.89743506,101810.0,101800.0,0.23518797]
[1734166937772,0.89793506,101810.0,101800.0,0.23518797]
[1734166938882,0.89743506,101810.0,101800.0,0.23518797]
[1734166939585,1.26055506,101810.0,101800.0,0.23518797]
[1734166939772,1.26105506,101810.0,101800.0,0.23518797]
[1734166945882,1.26055506,101810.0,101800.0,0.23518797]
[1734166947380,1.26055506,101810.0,101800.0,0.21744392]
[1734166949376,1.26055506,101810.0,101800.0,0.18345639]
[1734166950085,1.08385457,101810.0,101800.0,0.18345639]
[1734166950485,0.09818,101800.0,101770.0,0.47021178]
[1734166950782,0.049127,101770.0,101760.0,0.54069109]
[1734166951084,0.8946215,101770.0,101760.0,0.24402236]
[1734166951687,0.95540875,101770.0,101760.0,0.24402236]
[1734166953282,0.95540875,101770.0,101760.0,0.057354]
[1734166953682,1.04430875,101770.0,101760.0,0.057354]
[1734166954284,1.05480185,101770.0,101760.0,0.057354]
[1734166954792,1.05480185,101770.0,101760.0,0.0005]
[1734166956277,0.049137,101750.0,101740.0,0.11370633]
[1734166956475,0.8923115,101750.0,101740.0,0.11370633]
[1734166959489,1.0365357,101750.0,101740.0,0.11370633]
[1734166962493,1.04714079,101750.0,101740.0,0.11370633]
[1734166964689,0.049144,101740.0,101720.0,0.549149]
[1734166964883,0.3608,101730.0,101720.0,0.549149]
[1734166965289,0.409947,101730.0,101720.0,0.549149]
[1734166965643,0.409947,101730.0,101720.0,2.049149]
[1734166966006,0.409947,101730.0,101720.0,2.09216596]
[1734166966195,0.409947,101730.0,101720.0,2.049149]
[1734166966385,0.47073425,101730.0,101720.0,2.049149]
[1734166967892,0.47073425,101730.0,101720.0,2.18706596]
[1734166968189,0.47073425,101730.0,101720.0,2.144049]
[1734166968384,0.10993425,101730.0,101720.0,2.18706596]
[1734166968793,0.47073425,101730.0,101720.0,1.68706596]
[1734166968984,0.47083176,101730.0,101720.0,1.63791696]
[1734166969894,0.47083176,101730.0,101720.0,1.63841696]
[1734166971196,0.47083176,101730.0,101720.0,1.5954]
[1734166973396,0.55869381,101730.0,101720.0,1.5954]
[1734166973790,0.49790656,101730.0,101720.0,1.5954]
[1734166973995,0.13710656,101730.0,101720.0,1.5954]
[1734166974297,0.49790656,101730.0,101720.0,1.5954]
[1734166976404,0.61505596,101730.0,101720.0,1.5954]
[1734166976994,0.67584321,101730.0,101720.0,1.5954]
[1734166977199,0.58798116,101730.0,101720.0,1.5954]
[1734166977403,0.73441791,101730.0,101720.0,1.5954]
[1734166977701,0.61726851,101730.0,101720.0,1.5954]
[1734166977901,0.73468924,101730.0,101720.0,1.5954]
[1734166978302,0.62773328,101730.0,101720.0,1.5954]
[1734166979498,0.62773328,101730.0,101720.0,1.644552]
[1734166979809,0.62773328,101730.0,101720.0,1.644052]
[1734166980298,0.65702064,101730.0,101720.0,1.644052]
[1734166981301,0.65702064,101730.0,101720.0,1.68707034]
[1734166983504,0.65702064,101730.0,101720.0,1.644052]
[1734166983705,0.65702064,101730.0,101720.0,1.6546854]
[1734166984301,0.29622064,101730.0,101720.0,1.69770392]
[1734166984503,0.65702064,101730.0,101720.0,1.69770392]
[1734166984906,0.59623339,101730.0,101720.0,1.69770392]
[1734166985705,0.42050928,101730.0,101720.0,1.69770392]
[1734166986004,0.59737001,101730.0,101720.0,1.69770392]
[1734166986798,0.65815726,101730.0,101720.0,1.69770392]
[1734166987309,0.42050928,101730.0,101720.0,1.69770392]
[1734166987510,0.48129653,101730.0,101720.0,1.69770392]
[1734166989209,0.65816128,101730.0,101720.0,1.69770392]
[1734166991112,0.48129653,101730.0,101720.0,1.69770392]
[1734166991303,0.65816426,101730.0,101720.0,1.64855192]
[1734166991605,0.65816426,101730.0,101720.0,0.10551852]
[1734166991606,0.48129653,101730.0,101720.0,0.10551852]
[1734166991815,0.48129653,101730.0,101720.0,0.07481852]
[1734166994302,0.65813588,101730.0,101720.0,0.07481852]
[1734166994499,0.65812534,101730.0,101720.0,0.07481852]
[1734166998304,0.59733809,101730.0,101720.0,0.12397052]
[1734166999013,0.65812534,101730.0,101720.0,0.12397052]
[1734166999913,0.65812534,101730.0,101720.0,0.15527052]
[1734167000213,0.80546789,101730.0,101720.0,0.15527052]
[1734167001517,0.62863908,101730.0,101720.0,0.15527052]
[1734167001713,0.80546789,101730.0,101720.0,0.15527052]
[1734167002417,0.62863908,101730.0,101720.0,0.15527052]
[1734167003619,0.56785183,101730.0,101720.0,0.15527052]
[1734167004218,0.20705183,101730.0,101720.0,0.15527052]
[1734167004420,0.56785183,101730.0,101720.0,0.15527052]
[1734167004618,0.62863908,101730.0,101720.0,0.15527052]
[1734167005123,0.74653282,101730.0,101720.0,0.15527052]
[1734167005319,0.62863908,101730.0,101720.0,0.15527052]
[1734167005715,0.56785183,101730.0,101720.0,0.15527052]
[1734167006525,0.62863908,101730.0,101720.0,0.15527052]
[1734167009422,0.56785183,101730.0,101720.0,0.15527052]
[1734167010229,0.20705183,101730.0,101720.0,0.15527052]
[1734167010429,0.56785183,101730.0,101720.0,0.15527052]
[1734167010820,0.20705183,101730.0,101720.0,0.15527052]
[1734167011018,0.56785183,101730.0,101720.0,0.15527052]
[1734167014031,0.68576548,101730.0,101720.0,0.15527052]
[1734167014636,0.56785183,101730.0,101720.0,0.15527052]
[1734167014819,0.68576712,101730.0,101720.0,0.15527052]
[1734167016131,0.74655437,101730.0,101720.0,0.15527052]
[1734167017134,0.68576712,101730.0,101720.0,0.71605777]
[1734167018832,0.12847757,101730.0,101720.0,1.13764502]
[1734167019425,0.12847757,101730.0,101720.0,1.07685777]
[1734167019834,0.21689631,101730.0,101720.0,1.07685777]
[1734167020925,0.09898102,101730.0,101720.0,1.13764502]
[1734167021126,0.09898102,101730.0,101720.0,1.07685777]
[1734167022228,0.09898102,101730.0,101720.0,0.71605777]
[1734167022425,0.21689631,101730.0,101720.0,0.71605777]
[1734167024540,0.27768356,101730.0,101720.0,0.71605777]
[1734167024731,0.21689631,101730.0,101720.0,0.71605777]
[1734167027632,0.21689631,101730.0,101720.0,0.65527052]
[1734167029126,0.21689631,101730.0,101720.0,0.71605777]
[1734167030235,0.57769631,101730.0,101720.0,0.71605777]
[1734167030436,0.27768356,101730.0,101720.0,0.65527052]
[1734167031037,0.27768356,101730.0,101720.0,0.59217052]
[1734167031434,0.27768356,101730.0,101720.0,0.62487052]
[1734167031627,0.63848356,101730.0,101720.0,0.62487052]
[1734167031831,0.55006482,101730.0,101720.0,0.62487052]
[1734167032031,0.27766968,101730.0,101720.0,0.62487052]
[1734167032338,0.59921182,101730.0,101720.0,0.62487052]
[1734167032635,0.23841182,101730.0,101720.0,0.62487052]
[1734167033543,0.32682003,101730.0,101720.0,0.62487052]
[1734167033839,0.23841182,101730.0,101720.0,0.62487052]
[1734167034031,0.59921182,101730.0,101720.0,0.62487052]
[1734167034230,0.23841182,101730.0,101720.0,0.62487052]
[1734167034430,0.59921182,101730.0,101720.0,0.62487052]
[1734167034628,0.23841182,101730.0,101720.0,0.62487052]
[1734167034841,0.17762457,101730.0,101720.0,0.62487052]
[1734167046051,0.12847757,101730.0,101720.0,0.62487052]
[1734167048241,0.12847757,101730.0,101720.0,0.68565777]
[1734167048442,0.12847757,101730.0,101720.0,0.62487052]
[1734167049853,0.17762457,101730.0,101720.0,0.62487052]
[1734167050367,0.74655437,101730.0,101720.0,0.62487052]
[1734167050663,0.66033908,101730.0,101720.0,0.09217052]
[1734167050869,0.72373908,101730.0,101720.0,0.09217052]
[1734167070480,0.72373908,101730.0,101720.0,0.049152]
[1734167071883,0.72373908,101730.0,101710.0,2.14274125]
[1734167072082,0.61616089,101720.0,101710.0,2.18576099]
[1734167072281,0.52778565,101720.0,101710.0,2.18576099]
[1734167072782,0.5885729,101720.0,101710.0,2.18576099]
[1734167073483,0.52778565,101720.0,101710.0,0.68576099]
[1734167073893,0.52778565,101720.0,101710.0,2.18576099]
[1734167077078,0.61619027,101720.0,101710.0,2.18576099]
[1734167079186,0.52778565,101720.0,101710.0,2.18576099]
[1734167079391,0.5885729,101720.0,101710.0,2.12497374]
[1734167079587,0.73591545,101720.0,101710.0,0.07581974]
[1734167079777,0.6180818,101720.0,101710.0,0.07581974]
[1734167079982,0.79491061,101720.0,101710.0,0.07581974]
[1734167080182,0.79491061,101720.0,101710.0,1.57581974]
[1734167080386,0.6180818,101720.0,101710.0,1.57581974]
[1734167080582,0.79491061,101720.0,101710.0,1.57581974]
[1734167081185,0.6180818,101720.0,101710.0,1.57581974]
[1734167082882,0.9788818,101720.0,101710.0,1.57581974]
[1734167085091,0.9788818,101720.0,101710.0,1.5328]
[1734167088993,1.03966905,101720.0,101710.0,1.5328]
[1734167089192,0.9788818,101720.0,101710.0,1.5328]
[1734167090103,0.9788818,101720.0,101710.0,1.57582633]
[1734167092190,1.09665155,101720.0,101710.0,1.57582633]
[1734167093795,1.1574388,101720.0,101710.0,1.57582633]
[1734167093995,1.03966905,101720.0,101710.0,1.57582633]
[1734167094598,0.9788818,101720.0,101710.0,1.57582633]
[1734167096801,0.2572818,101720.0,101710.0,1.57582633]
[1734167097103,0.9788818,101720.0,101710.0,1.57582633]
[1734167097307,1.03966905,101720.0,101710.0,1.57582633]
[1734167098008,1.03966905,101720.0,101710.0,0.07582633]
[1734167100897,1.039759,101720.0,101710.0,0.0328]
[1734167101101,0.049156,101710.0,101700.0,1.6634]
[1734167101302,0.61797265,101710.0,101700.0,1.6634]
[1734167102514,0.67884362,101710.0,101700.0,1.6327]
[1734167102811,0.61805637,101710.0,101700.0,1.6327]
[1734167103505,0.67884362,101710.0,101700.0,1.6327]
[1734167103706,0.55726912,101710.0,101700.0,1.6327]
[1734167103908,0.61805637,101710.0,101700.0,0.1327]
[1734167104502,0.67884362,101710.0,101700.0,0.1327]
[1734167104705,0.80284303,101710.0,101700.0,0.1]
[1734167105604,0.94994771,101710.0,101700.0,0.1]
[1734167106304,0.7731189,101710.0,101700.0,0.1]
[1734167106710,0.78360748,101710.0,101700.0,0.1]
[1734167107013,0.96043629,101710.0,101700.0,0.1]
[1734167107313,0.78360748,101710.0,101700.0,0.1]
[1734167107909,0.78352376,101710.0,101700.0,0.1]
[1734167108110,0.96031233,101710.0,101700.0,0.1]
[1734167109309,1.26031233,101710.0,101700.0,0.1]
[1734167109615,1.11324789,101710.0,101700.0,0.1]
[1734167110316,1.26023592,101710.0,101700.0,0.1]
[1734167110717,1.11324789,101710.0,101700.0,0.1]
[1734167111412,1.11335038,101710.0,101700.0,0.1]
[1734167111608,1.1133429,101710.0,101700.0,0.1]
[1734167111803,1.11335422,101710.0,101700.0,0.1]
[1734167112003,0.59737972,101710.0,101700.0,0.1]
[1734167112215,0.86590682,101710.0,101700.0,0.1]
[1734167112419,0.8658098,101710.0,101700.0,0.1]
[1734167113919,0.86591613,101710.0,101700.0,0.1]
[1734167114111,0.8658098,101710.0,101700.0,0.1]
[1734167114315,0.68898099,101710.0,101700.0,0.1]
[1734167115014,0.70835889,101710.0,101700.0,0.1]
[1734167115420,0.8851877,101710.0,101700.0,0.1]
[1734167116416,0.88529403,101710.0,101700.0,0.1]
[1734167116611,0.8851877,101710.0,101700.0,0.1]
[1734167117215,0.70835889,101710.0,101700.0,0.1]
[1734167117515,0.8851877,101710.0,101700.0,0.1]
[1734167117713,0.70835889,101710.0,101700.0,0.13]
[1734167117912,0.56139698,101710.0,101700.0,0.13]
[1734167118515,0.54201908,101710.0,101700.0,0.13]
[1734167118710,0.56748964,101710.0,101700.0,0.13]
[1734167118914,0.7458376,101710.0,101700.0,0.13]
[1734167119116,0.59889779,101710.0,101700.0,0.13]
[1734167119818,0.59889779,101710.0,101700.0,0.17303273]
[1734167119819,0.68707788,101710.0,101700.0,0.17303273]
[1734167121318,0.68707788,101710.0,101700.0,0.22219373]
[1734167123118,0.68707788,101710.0,101700.0,0.17303273]
[1734167124853,0.68707788,101710.0,101700.0,0.22219373]
[1734167125249,0.68713903,101710.0,101700.0,0.22219373]
[1734167125946,0.68713903,101710.0,101700.0,0.179161]
[1734167126130,0.68713903,101710.0,101700.0,0.2221915]
[1734167128144,0.59889779,101710.0,101700.0,0.2221915]
[1734167128536,0.62638626,101710.0,101700.0,0.28297875]
[1734167129038,0.50882015,101710.0,101700.0,0.28297875]
[1734167134218,0.14802015,101710.0,101700.0,0.28297875]
[1734167136433,0.2088074,101710.0,101700.0,0.28297875]
[1734167139631,0.14802015,101710.0,101700.0,0.28297875]
[1734167144929,0.2088074,101710.0,101700.0,0.28297875]
[1734167145232,0.2088074,101710.0,101700.0,0.2221915]
[1734167147340,0.32637351,101710.0,101700.0,0.2221915]
[1734167148240,0.68717351,101710.0,101700.0,0.2221915]
[1734167148735,0.68728797,101710.0,101700.0,0.2221915]
[1734167149933,0.59889779,101710.0,101700.0,0.179161]
[1734167151744,0.59889779,101710.0,101700.0,0.22218887]
[1734167152547,0.80663025,101710.0,101700.0,0.14302787]
[1734167152733,0.68906414,101710.0,101700.0,0.1]
[1734167152934,0.68896429,101710.0,101700.0,0.1]
[1734167153131,0.86540487,101710.0,101700.0,0.1]
[1734167153334,0.71845966,101710.0,101700.0,0.14303348]
[1734167153540,0.54201908,101710.0,101700.0,0.14303348]
[1734167153842,0.71880769,101710.0,101700.0,0.14303348]
[1734167154038,0.71880482,101710.0,101700.0,0.14303348]
[1734167154239,0.89552026,101710.0,101700.0,0.14303348]
[1734167154436,0.89552026,101710.0,101700.0,0.1]
[1734167156441,0.89559049,101710.0,101700.0,0.1]
[1734167156639,0.89552026,101710.0,101700.0,0.1]
[1734167157235,1.04268461,101710.0,101700.0,0.1]
[1734167157633,0.89552026,101710.0,101700.0,0.1]
[1734167158236,1.04265403,101710.0,101700.0,0.1]
[1734167159235,0.86593859,101710.0,101700.0,0.1]
[1734167159748,1.04265403,101710.0,101700.0,0.1]
[1734167159946,0.89552026,101710.0,101700.0,0.1]
[1734167160142,1.04263076,101710.0,101700.0,0.1]
[1734167161452,0.86584502,101710.0,101700.0,0.1]
[1734167162242,0.86580333,101710.0,101700.0,0.1]
[1734167163248,0.86590548,101710.0,101700.0,0.1]
[1734167163448,0.86580333,101710.0,101700.0,0.1]
[1734167165445,0.71873452,101710.0,101700.0,0.1]
[1734167166351,0.68902855,101710.0,101700.0,0.08371388]
[1734167166653,0.86574399,101710.0,101700.0,0.07060571]
[1734167170455,0.68902855,101710.0,101700.0,0.07060571]
[1734167171954,0.86574399,101710.0,101700.0,0.07060571]
[1734167172453,0.86576583,101710.0,101700.0,0.07060571]
[1734167174452,0.86585611,101710.0,101700.0,0.07060571]
[1734167174756,0.86576583,101710.0,101700.0,0.07060571]
[1734167175343,0.71873452,101710.0,101700.0,0.07060571]
[1734167177144,0.59716002,101710.0,101700.0,0.07060571]
[1734167177344,0.71884085,101710.0,101700.0,0.07060571]
[1734167177657,0.71873452,101710.0,101700.0,0.07060571]
[1734167178054,1.07953452,101710.0,101700.0,0.07060571]
[1734167178544,0.95796002,101710.0,101700.0,0.07060571]
[1734167178745,1.07953452,101710.0,101700.0,0.07060571]